fUSD/lending_fUSD_20240521
["ID","MTS","AMOUNT","RATE_DAILY","PERIOD"]
[327686065,1716316250488,-500.0,0.00030684,6]
[327686066,1716316250497,-531.86,0.00030684,6]
[327686067,1716316250506,-500.0,0.00030684,6]
[327686068,1716316250518,-508.03,0.00030684,6]
[327686069,1716316250527,-500.0,0.00030684,6]
[327686070,1716316250535,-714.57,0.00030684,6]
[327686071,1716316250545,-500.0,0.00030684,6]
[327686072,1716316250554,-640.59,0.00030684,6]
[327686073,1716316250564,-736.81,0.00030684,6]
[327686074,1716316250573,-500.76,0.00030684,6]
[327686075,1716316250582,-500.0,0.00030684,6]
[327686076,1716316250591,-582.67,0.00030684,6]
[327686077,1716316250600,-500.0,0.00030684,6]
[327686078,1716316250610,-500.0,0.00030684,6]
[327686079,1716316250620,-536.34,0.00030684,6]
[327686080,1716316250630,-758.17,0.00030684,6]
[327686081,1716316250640,-761.88,0.00030684,6]
[327686082,1716316250650,-508.86,0.00030684,6]
[327686083,1716316250659,-500.0,0.00030684,6]
[327686084,1716316250668,-500.0,0.00030684,6]
[327686085,1716316250677,-500.0,0.00030684,6]
[327686086,1716316250686,-548.52,0.00030684,6]
[327686087,1716316250695,-500.0,0.00030684,6]
[327686088,1716316250704,-1323.49,0.00030684,6]
[327686089,1716316250714,-858.99,0.00030684,6]
[327686090,1716316250725,-540.73,0.00030684,6]
[327686091,1716316250733,-491.71,0.00030684,6]
[327686092,1716316250743,-621.75,0.00030684,6]
[327686093,1716316250752,-500.0,0.00030684,6]
[327686094,1716316250763,-577.74,0.00030684,6]
[327686095,1716316250773,-500.0,0.00030684,6]
[327686096,1716316250785,-500.0,0.00030684,6]
[327686097,1716316250798,-500.0,0.00030684,6]
[327686098,1716316250808,-844.58,0.00030684,6]
[327686099,1716316250818,-500.0,0.00030684,6]
[327686100,1716316250827,-500.0,0.00030684,6]
[327686101,1716316250839,-616.73,0.00030684,6]
[327686102,1716316250848,-972.64,0.00030684,6]
[327686103,1716316250857,-500.0,0.00030684,6]
[327686104,1716316250868,-509.21,0.00030684,6]
[327686105,1716316250877,-500.0,0.00030684,6]
[327686106,1716316250886,-897.67,0.00030684,6]
[327686107,1716316250896,-500.0,0.00030684,6]
[327686108,1716316250905,-500.0,0.00030684,6]
[327686109,1716316250914,-1075.6,0.00030684,6]
[327686110,1716316250924,-1017.28,0.00030684,6]
[327686111,1716316250933,-500.0,0.00030684,6]
[327686112,1716316250942,-776.77,0.00030684,6]
[327686113,1716316250951,-500.0,0.00030684,6]
[327686114,1716316250960,-500.0,0.00030684,6]
[327686115,1716316250970,-1232.83,0.00030684,6]
[327686116,1716316250978,-150.0,0.00030684,6]
[327686117,1716316250987,-855.63,0.00030684,6]
[327686118,1716316250996,-326.26,0.00030684,6]
[327686119,1716316251006,-500.0,0.00030684,6]
[327686120,1716316251016,-1394.84,0.00030684,6]
[327686121,1716316251026,-500.0,0.00030684,6]
[327686122,1716316251034,-681.97,0.00030684,6]
[327686123,1716316251043,-627.96,0.00030684,6]
[327686124,1716316251052,-653.59,0.00030684,6]
[327686125,1716316251062,-639.66,0.00030684,6]
[327686126,1716316251070,-577.48,0.00030684,6]
[327686127,1716316251079,-609.76,0.00030684,6]
[327686128,1716316251088,-793.39,0.00030684,6]
[327686129,1716316251098,-744.05,0.00030684,6]
[327686130,1716316251106,-500.0,0.00030684,6]
[327686131,1716316251116,-738.85,0.00030684,6]
[327686132,1716316251125,-1125.7,0.00030684,6]
[327686133,1716316251134,-868.11,0.00030684,6]
[327686134,1716316251143,-1004.45,0.00030684,6]
[327686135,1716316251152,-836.71,0.00030684,6]
[327686136,1716316251161,-500.0,0.00030684,6]
[327686137,1716316251171,-2626.16,0.00030684,6]
[327686138,1716316251180,-500.0,0.00030684,6]
[327686139,1716316251190,-1130.72,0.00030684,6]
[327686140,1716316251198,-500.0,0.00030684,6]
[327686141,1716316251207,-926.85,0.00030684,6]
[327686142,1716316251217,-500.0,0.00030684,6]
[327686143,1716316251226,-532.5,0.00030684,6]
[327686144,1716316251235,-16858.5,0.00030684,6]
[327686145,1716316251244,-724.05,0.00030684,6]
[327686146,1716316251254,-1165.07,0.00030684,6]
[327686147,1716316251265,-500.0,0.00030684,6]
[327686148,1716316251274,-6309.69,0.00030684,6]
[327686149,1716316251283,-509.8,0.00030684,6]
[327686150,1716316251292,-727.07,0.00030684,6]
[327686151,1716316251301,-500.0,0.00030684,6]
[327686152,1716316251310,-500.0,0.00030684,6]
[327686153,1716316251319,-818.66,0.00030684,6]
[327686154,1716316251328,-2034.36,0.00030684,6]
[327686155,1716316251338,-500.0,0.00030684,6]
[327686156,1716316251347,-661.44,0.00030684,6]
[327686157,1716316251355,-500.0,0.00030684,6]
[327686158,1716316251364,-1075.43,0.00030684,6]
[327686159,1716316251374,-1755.6,0.00030684,6]
[327686160,1716316251384,-500.0,0.00030684,6]
[327686161,1716316251392,-1648.0,0.00030684,6]
[327686162,1716316251402,-500.0,0.00030684,6]
[327686163,1716316251411,-664.63,0.00030684,6]
[327686164,1716316251420,-500.0,0.00030684,6]
[327686165,1716316251428,-1162.81,0.00030684,6]
[327686166,1716316251438,-2412.38,0.00030684,6]
[327686167,1716316251447,-500.0,0.00030684,6]
[327686168,1716316251456,-1521.73,0.00030684,6]
[327686169,1716316251465,-693.15,0.00030684,6]
[327686170,1716316251474,-546.22,0.00030684,6]
[327686171,1716316251483,-5092.37,0.00030684,6]
[327686172,1716316251492,-500.0,0.00030684,6]
[327686173,1716316251501,-715.94,0.00030684,6]
[327686174,1716316251512,-2437.48,0.00030684,6]
[327686175,1716316251521,-1578.46,0.00030684,6]
[327686176,1716316251530,-1126.66,0.00030684,6]
[327686177,1716316251539,-500.0,0.00030684,6]
[327686178,1716316251549,-2640.62,0.00030684,6]
[327686179,1716316251558,-11507.41,0.00030684,6]
[327686180,1716316251568,-918.14,0.00030684,6]
[327686181,1716316251578,-17798.41,0.00030684,6]
[327686182,1716316251588,-3960.21,0.00030684,6]
[327686183,1716316251598,-2310.75,0.00030684,6]
[327686184,1716316251607,-615.99,0.00030684,6]
[327686185,1716316251616,-1917.6,0.00030684,6]
[327686186,1716316251625,-3564.21,0.00030684,6]
[327686187,1716316251634,-555.48,0.00030684,6]
[327686188,1716316251643,-500.0,0.00030684,6]
[327686189,1716316251652,-1377.53,0.00030684,6]
[327686190,1716316251662,-1386.79,0.00030684,6]
[327686191,1716316251672,-7460.5,0.00030684,6]
[327686192,1716316251683,-899.25,0.00030684,6]
[327686193,1716316251692,-1306.92,0.00030684,6]
[327686194,1716316251701,-892.49,0.00030684,6]
[327686195,1716316251711,-606.77,0.00030684,6]
[327686196,1716316251720,-500.0,0.00030684,6]
[327686197,1716316251729,-500.0,0.00030684,6]
[327686198,1716316251738,-500.0,0.00030684,6]
[327686199,1716316251748,-500.0,0.00030684,6]
[327686200,1716316251758,-500.0,0.00030684,6]
[327686201,1716316251772,-1096.41,0.00030684,6]
[327686202,1716316251782,-500.0,0.00030684,6]
[327686203,1716316251795,-500.0,0.00030684,6]
[327686204,1716316251804,-5000.1,0.00030684,6]
[327686205,1716316251813,-959.06,0.00030684,6]
[327686206,1716316251822,-598.5,0.00030684,6]
[327686207,1716316251833,-791.47,0.00030684,6]
[327686208,1716316251842,-32053.49,0.00030684,6]
[327686209,1716316251851,-1743.17,0.00030684,6]
[327686210,1716316251861,-729.88,0.00030684,6]
[327686211,1716316251873,-817.56,0.00030684,6]
[327686212,1716316251882,-500.0,0.00030684,6]
[327686213,1716316251891,-724.74,0.00030684,6]
[327686214,1716316251900,-500.0,0.00030684,6]
[327686215,1716316251909,-1700.58,0.00030684,6]
[327686216,1716316251918,-1769.46,0.00030684,6]
[327686217,1716316251927,-1256.49,0.00030684,6]
[327686218,1716316251937,-504.54,0.00030684,6]
[327686219,1716316251946,-500.0,0.00030684,6]
[327686220,1716316251955,-1205.04,0.00030684,6]
[327686221,1716316251966,-1040.21,0.00030684,6]
[327686222,1716316251975,-500.0,0.00030684,6]
[327686223,1716316251984,-500.0,0.00030684,6]
[327686224,1716316251993,-500.0,0.00030684,6]
[327686225,1716316252003,-581.31,0.00030684,6]
[327686226,1716316252014,-1004.82,0.00030684,6]
[327686227,1716316252023,-500.0,0.00030684,6]
[327686228,1716316252032,-2440.01,0.00030684,6]
[327686229,1716316252041,-500.0,0.00030684,6]
[327686230,1716316252049,-957.87,0.00030684,6]
[327686231,1716316252058,-500.0,0.00030684,6]
[327686232,1716316252067,-956.64,0.00030684,6]
[327686233,1716316252076,-1246.0,0.00030684,6]
[327686234,1716316252086,-900.38,0.00030684,6]
[327686235,1716316252095,-500.0,0.00030684,6]
[327686236,1716316252104,-3280.1,0.00030684,6]
[327686237,1716316252113,-500.0,0.00030684,6]
[327686238,1716316252122,-885.02,0.00030684,6]
[327686239,1716316252131,-967.59,0.00030684,6]
[327686240,1716316252140,-500.0,0.00030684,6]
[327686241,1716316252149,-555.07,0.00030684,6]
[327686242,1716316252159,-2535.68,0.00030684,6]
[327686243,1716316252168,-500.0,0.00030684,6]
[327686244,1716316252178,-500.0,0.00030684,6]
[327686245,1716316252187,-500.0,0.00030684,6]
[327686246,1716316252196,-500.0,0.00030684,6]
[327686247,1716316252206,-500.0,0.00030684,6]
[327686248,1716316252215,-3806.59,0.00030684,6]
[327686249,1716316252225,-1488.74,0.00030684,6]
[327686250,1716316252235,-1147.17,0.00030684,6]
[327686251,1716316252244,-500.0,0.00030684,6]
[327686252,1716316252255,-1380.38,0.00030684,6]
[327686253,1716316252268,-500.0,0.00030684,6]
[327686254,1716316252279,-500.0,0.00030684,6]
[327686255,1716316252288,-1635.63,0.00030684,6]
[327686256,1716316252298,-1525.29,0.00030684,6]
[327686257,1716316252307,-1257.47,0.00030684,6]
[327686258,1716316252316,-500.0,0.00030684,6]
[327686259,1716316252327,-500.0,0.00030684,6]
[327686260,1716316252336,-970.49,0.00030684,6]
[327686261,1716316252345,-2530.76,0.00030684,6]
[327686262,1716316252356,-2578.83,0.00030684,6]
[327686263,1716316252366,-500.0,0.00030684,6]
[327686264,1716316252375,-604.91,0.00030684,6]
[327686265,1716316252384,-1708.59,0.00030684,6]
[327686266,1716316252393,-500.0,0.00030684,6]
[327686267,1716316252403,-628.28,0.00030684,6]
[327686268,1716316252413,-500.0,0.00030684,6]
[327686269,1716316252424,-5873.13,0.00030684,6]
[327686270,1716316252435,-500.0,0.00030684,6]
[327686271,1716316252446,-500.0,0.00030684,6]
[327686272,1716316252457,-500.0,0.00030684,6]
[327686273,1716316252466,-627.38,0.00030684,6]
[327686274,1716316252476,-500.0,0.00030684,6]
[327686275,1716316252486,-1306.57,0.00030684,6]
[327686276,1716316252495,-569.32,0.00030684,6]
[327686277,1716316252504,-500.0,0.00030684,6]
[327686278,1716316252516,-790.98,0.00030684,6]
[327686279,1716316252526,-2504.87,0.00030684,6]
[327686280,1716316252535,-642.22,0.00030684,6]
[327686281,1716316252545,-500.0,0.00030684,6]
[327686282,1716316252554,-658.26,0.00030684,6]
[327686283,1716316252565,-2664.87,0.00030684,6]
[327686284,1716316252574,-2680.72,0.00030684,6]
[327686285,1716316252584,-1735.47,0.00030684,6]
[327686286,1716316252594,-1337.02,0.00030684,6]
[327686287,1716316252604,-500.0,0.00030684,6]
[327686288,1716316252613,-2169.3,0.00030684,6]
[327686289,1716316252623,-708.14,0.00030684,6]
[327686290,1716316252633,-2491.18,0.00030684,6]
[327686291,1716316252643,-500.0,0.00030684,6]
[327686292,1716316252653,-500.0,0.00030684,6]
[327686293,1716316252663,-232.5,0.00030684,6]
[327686294,1716316252672,-938.36,0.00030684,6]
[327686295,1716316252682,-1512.45,0.00030684,6]
[327686296,1716316252691,-16487.94,0.00030684,6]
[327686297,1716316252701,-2965.71,0.00030684,6]
[327686298,1716316252711,-1252.58,0.00030684,6]
[327686299,1716316252720,-756.29,0.00030684,6]
[327686300,1716316252730,-4868.19,0.00030684,6]
[327686301,1716316252740,-945.04,0.00030684,6]
[327686302,1716316252749,-500.0,0.00030684,6]
[327686303,1716316252758,-500.0,0.00030684,6]
[327686304,1716316252770,-4497.66,0.00030684,6]
[327686305,1716316252779,-555.55,0.00030684,6]
[327686306,1716316252790,-1278.8,0.00030684,6]
[327686307,1716316252802,-2100.9,0.00030684,6]
[327686308,1716316252812,-583.25,0.00030684,6]
[327686309,1716316252821,-500.0,0.00030684,6]
[327686310,1716316252832,-1930.02,0.00030684,6]
[327686311,1716316252841,-500.0,0.00030684,6]
[327686312,1716316252850,-2760.56,0.00030684,6]
[327686313,1716316252860,-500.0,0.00030684,6]
[327686314,1716316252874,-2732.98,0.00030684,6]
[327686315,1716316252885,-500.0,0.00030684,6]
[327686316,1716316252894,-500.0,0.00030684,6]
[327686317,1716316252904,-2336.81,0.00030684,6]
[327686318,1716316252914,-500.0,0.00030684,6]
[327686319,1716316252923,-627.47,0.00030684,6]
[327686320,1716316252933,-731.47,0.00030684,6]
[327686321,1716316252943,-500.0,0.00030684,6]
[327686322,1716316252952,-500.0,0.00030684,2]
[327686323,1716316252962,-1752.67,0.00030684,6]
[327686324,1716316252972,-500.0,0.00030684,6]
[327686325,1716316252982,-1442.1,0.00030684,6]
[327686326,1716316252991,-591.06,0.00030684,6]
[327686327,1716316253001,-3857.11,0.00030684,6]
[327686328,1716316253010,-543.42,0.00030684,6]
[327686329,1716316253023,-500.0,0.00030684,6]
[327686330,1716316253033,-507.00033575,0.00030684,6]
[327686331,1716316253043,-1100.89,0.00030684,6]
[327686332,1716316253052,-1036.86,0.00030684,6]
[327686333,1716316253062,-500.0,0.00030684,6]
[327686334,1716316253071,-500.0,0.00030684,6]
[327686335,1716316253081,-500.0,0.00030684,6]
[327686336,1716316253090,-500.0,0.00030684,6]
[327686337,1716316253100,-500.0,0.00030684,6]
[327686338,1716316253109,-500.0,0.00030684,6]
[327686339,1716316253119,-2606.25,0.00030684,6]
[327686340,1716316253128,-500.0,0.00030684,6]
[327686341,1716316253139,-500.0,0.00030684,6]
[327686342,1716316253150,-500.0,0.00030684,6]
[327686343,1716316253161,-1666.58,0.00030684,6]
[327686344,1716316253171,-500.0,0.00030684,6]
[327686345,1716316253180,-608.2,0.00030684,6]
[327686346,1716316253189,-3603.45,0.00030684,6]
[327686347,1716316253199,-500.0,0.00030684,6]
[327686348,1716316253208,-45330.32,0.00030684,6]
[327686349,1716316253218,-4534.59,0.00030684,6]
[327686350,1716316253227,-1578.93,0.00030684,6]
[327686351,1716316253236,-500.0,0.00030684,6]
[327686352,1716316253245,-500.0,0.00030684,6]
[327686353,1716316253255,-2626.07,0.00030684,6]
[327686354,1716316253264,-1557.56,0.00030684,6]
[327686355,1716316253273,-500.0,0.00030684,6]
[327686356,1716316253283,-500.0,0.00030684,6]
[327686357,1716316253292,-572.84,0.00030684,6]
[327686358,1716316253302,-163.49,0.00030825,2]
[327686359,1716316253311,-150.0,0.00030825,2]
[327686360,1716316253320,-351.89,0.00030825,2]
[327686361,1716316253330,-150.0,0.00030825,2]
[327686362,1716316253339,-420.83,0.00030825,2]
[327686363,1716316253349,-524.14,0.00030825,2]
[327686364,1716316253359,-163.49,0.00030825,2]
[327686365,1716316253368,-420.83,0.00030825,2]
[327686366,1716316253378,-163.49,0.00030825,2]
[327686367,1716316253388,-524.14,0.00030825,2]
[327686368,1716316253398,-351.89,0.00030825,2]
[327686369,1716316253407,-150.0,0.00030825,2]
[327686370,1716316253417,-150.0,0.00030825,2]
[327686371,1716316253426,-420.83,0.00030825,2]
[327686372,1716316253435,-150.0,0.00030825,2]
[327686373,1716316253444,-351.89,0.00030825,2]
[327686374,1716316253453,-163.49,0.00030825,2]
[327686375,1716316253462,-150.0,0.00030825,2]
[327686376,1716316253471,-163.49,0.00030825,2]
[327686377,1716316253480,-420.83,0.00030825,2]
[327686378,1716316253490,-150.0,0.00030825,2]
[327686379,1716316253499,-150.0,0.00030825,2]
[327686380,1716316253508,-351.89,0.00030825,2]
[327686381,1716316253518,-151.0,0.00030856,7]
[327686382,1716316253527,-151.0,0.00030856,7]
[327686383,1716316253536,-15244.13294643,0.00030856,2]
[327686384,1716316253546,-2979.75186347,0.00030856,2]
[327686385,1716316253555,-2151.0432933,0.00030858,2]
[327686386,1716316253564,-150.0,0.00030883,2]
[327686387,1716316253574,-370.49606799,0.00030909,3]
[327686388,1716316253583,-2165.96,0.00030957,6]
[327686389,1716316253592,-500.0,0.00030958,6]
[327686390,1716316253601,-500.0,0.00030958,6]
[327686391,1716316253611,-500.0,0.00030958,6]
[327686392,1716316253620,-500.0,0.00030958,6]
[327686393,1716316253629,-388.0,0.00030958,6]
[327686394,1716316253639,-500.0,0.00030958,6]
[327686395,1716316253648,-500.0,0.00030958,6]
[327686396,1716316253658,-500.0,0.00030958,6]
[327686397,1716316253667,-500.0,0.00030958,6]
[327686398,1716316253676,-500.0,0.00030958,6]
[327686399,1716316253685,-500.0,0.00030958,6]
[327686400,1716316253695,-500.0,0.00030958,6]
[327686401,1716316253704,-500.0,0.00030958,6]
[327686402,1716316253714,-669.78,0.00030958,6]
[327686403,1716316253723,-500.0,0.00030958,6]
[327686404,1716316253732,-500.0,0.00030958,6]
[327686405,1716316253742,-500.0,0.00030958,6]
[327686406,1716316253752,-500.0,0.00030958,6]
[327686407,1716316253762,-500.0,0.00030958,6]
[327686408,1716316253772,-500.0,0.00030958,6]
[327686409,1716316253783,-500.0,0.00030958,6]
[327686410,1716316253796,-661.34,0.00030958,6]
[327686411,1716316253805,-500.0,0.00030958,6]
[327686412,1716316253815,-500.0,0.00030958,6]
[327686413,1716316253824,-506.52170457,0.00030958,6]
[327686414,1716316253835,-500.0,0.00030958,6]
[327686415,1716316253844,-500.0,0.00030958,6]
[327686416,1716316253853,-530.7,0.00030958,6]
[327686417,1716316253863,-500.0,0.00030958,6]
[327686418,1716316253874,-500.0,0.00030958,6]
[327686419,1716316253883,-500.0,0.00030958,6]
[327686420,1716316253893,-500.0,0.00030958,6]
[327686421,1716316253902,-500.0,0.00030958,6]
[327686422,1716316253911,-500.0,0.00030958,6]
[327686423,1716316253921,-500.0,0.00030958,6]
[327686424,1716316253930,-500.0,0.00030958,6]
[327686425,1716316253939,-500.0,0.00030958,6]
[327686426,1716316253949,-500.0,0.00030958,6]
[327686427,1716316253958,-500.0,0.00030958,6]
[327686428,1716316253967,-899.59,0.00030958,6]
[327686429,1716316253977,-500.0,0.00030958,6]
[327686430,1716316253986,-500.0,0.00030958,6]
[327686431,1716316253995,-500.0,0.00030958,6]
[327686432,1716316254005,-500.0,0.00030958,6]
[327686433,1716316254015,-500.0,0.00030958,6]
[327686434,1716316254025,-500.0,0.00030958,6]
[327686435,1716316254036,-500.0,0.00030958,6]
[327686436,1716316254046,-500.0,0.00030958,6]
[327686437,1716316254055,-500.0,0.00030958,6]
[327686438,1716316254065,-526.21,0.00030958,6]
[327686439,1716316254076,-500.0,0.00030958,6]
[327686440,1716316254087,-561.17,0.00030958,6]
[327686441,1716316254097,-500.0,0.00030958,6]
[327686442,1716316254107,-500.0,0.00030958,6]
[327686443,1716316254117,-502.17,0.00030958,6]
[327686444,1716316254127,-500.0,0.00030958,6]
[327686445,1716316254136,-500.0,0.00030958,6]
[327686446,1716316254146,-500.0,0.00030958,6]
[327686447,1716316254156,-500.0,0.00030958,6]
[327686448,1716316254165,-500.0,0.00030958,6]
[327686449,1716316254175,-642.2,0.00030958,6]
[327686450,1716316254185,-707.53,0.00030958,6]
[327686451,1716316254195,-500.0,0.00030958,6]
[327686452,1716316254206,-500.0,0.00030958,6]
[327686453,1716316254215,-636.68,0.00030958,6]
[327686454,1716316254225,-500.0,0.00030958,6]
[327686455,1716316254235,-500.0,0.00030958,6]
[327686456,1716316254244,-500.0,0.00030958,6]
[327686457,1716316254254,-500.0,0.00030958,6]
[327686458,1716316254265,-705.01,0.00030958,6]
[327686459,1716316254275,-500.0,0.00030958,6]
[327686460,1716316254285,-685.81,0.00030958,6]
[327686461,1716316254295,-500.0,0.00030958,6]
[327686462,1716316254526,-548.36,0.00030958,6]
[327686463,1716316254580,-500.0,0.00030958,6]
[327686464,1716316254591,-500.0,0.00030958,6]
[327686465,1716316254601,-573.56,0.00030958,6]
[327686466,1716316254610,-898.96,0.00030958,6]
[327686467,1716316254620,-642.25,0.00030958,6]
[327686468,1716316254629,-500.0,0.00030958,6]
[327686469,1716316254639,-500.0,0.00030958,6]
[327686470,1716316254649,-816.76,0.00030958,6]
[327686471,1716316254658,-500.0,0.00030958,6]
[327686472,1716316254667,-500.0,0.00030958,6]
[327686473,1716316254677,-500.0,0.00030958,6]
[327686474,1716316254686,-500.0,0.00030958,6]
[327686475,1716316254696,-500.0,0.00030958,6]
[327686476,1716316254706,-500.0,0.00030958,6]
[327686477,1716316254715,-500.0,0.00030958,6]
[327686478,1716316254725,-500.0,0.00030958,6]
[327686479,1716316254734,-500.0,0.00030958,6]
[327686480,1716316254744,-986.16,0.00030958,6]
[327686481,1716316254754,-500.0,0.00030958,6]
[327686482,1716316254765,-783.72,0.00030958,6]
[327686483,1716316254775,-500.0,0.00030958,6]
[327686484,1716316254785,-500.0,0.00030958,6]
[327686485,1716316254797,-508.59,0.00030958,6]
[327686486,1716316254807,-644.81,0.00030958,6]
[327686487,1716316254817,-500.0,0.00030958,6]
[327686488,1716316254827,-500.0,0.00030958,6]
[327686489,1716316254837,-500.0,0.00030958,6]
[327686490,1716316254848,-522.18,0.00030958,6]
[327686491,1716316254858,-500.0,0.00030958,6]
[327686492,1716316254868,-500.0,0.00030958,6]
[327686493,1716316254881,-500.0,0.00030958,6]
[327686494,1716316254892,-500.0,0.00030958,6]
[327686495,1716316254902,-644.62,0.00030958,6]
[327686496,1716316254913,-500.0,0.00030958,6]
[327686497,1716316254924,-500.0,0.00030958,6]
[327686498,1716316254934,-500.0,0.00030958,6]
[327686499,1716316254943,-500.0,0.00030958,6]
[327686500,1716316254954,-842.71,0.00030958,6]
[327686501,1716316254963,-500.0,0.00030958,6]
[327686502,1716316254973,-500.0,0.00030958,6]
[327686503,1716316254983,-500.0,0.00030958,6]
[327686504,1716316254993,-500.0,0.00030958,6]
[327686505,1716316255003,-1359.76,0.00030958,6]
[327686506,1716316255015,-747.88,0.00030958,6]
[327686507,1716316255025,-500.0,0.00030958,6]
[327686508,1716316255035,-500.0,0.00030958,6]
[327686509,1716316255044,-471.97,0.00030958,6]
[327686510,1716316255054,-500.0,0.00030958,6]
[327686511,1716316255063,-500.0,0.00030958,6]
[327686512,1716316255074,-500.0,0.00030958,6]
[327686513,1716316255084,-500.0,0.00030958,6]
[327686514,1716316255095,-794.15,0.00030958,6]
[327686515,1716316255105,-500.0,0.00030958,6]
[327686516,1716316255116,-935.05,0.00030958,6]
[327686517,1716316255125,-634.77,0.00030958,6]
[327686518,1716316255136,-550.92,0.00030958,6]
[327686519,1716316255146,-500.0,0.00030958,6]
[327686520,1716316255156,-279.01677877,0.00030958,6]
[327686521,1716316255167,-1120.28,0.00030958,6]
[327686522,1716316255177,-500.0,0.00030958,6]
[327686523,1716316255186,-500.0,0.00030958,6]
[327686524,1716316255196,-520.02,0.00030958,6]
[327686525,1716316255206,-500.0,0.00030958,6]
[327686526,1716316255216,-667.72,0.00030958,6]
[327686527,1716316255226,-500.0,0.00030958,6]
[327686528,1716316255236,-1155.33,0.00030958,6]
[327686529,1716316255246,-500.0,0.00030958,6]
[327686530,1716316255256,-673.67,0.00030958,6]
[327686531,1716316255267,-500.0,0.00030958,6]
[327686532,1716316255277,-500.0,0.00030958,6]
[327686533,1716316255287,-500.0,0.00030958,6]
[327686534,1716316255296,-712.81,0.00030958,6]
[327686535,1716316255306,-528.34,0.00030958,6]
[327686536,1716316255316,-895.9,0.00030958,6]
[327686537,1716316255326,-204.89898564,0.00030958,6]
[327686538,1716316255337,-500.0,0.00030958,6]
[327686539,1716316255346,-500.0,0.00030958,6]
[327686540,1716316255356,-531.67669828,0.00030958,6]
[327686541,1716316255365,-531.86,0.00030958,6]
[327686542,1716316255376,-500.0,0.00030958,6]
[327686543,1716316255385,-508.03,0.00030958,6]
[327686544,1716316255395,-500.0,0.00030958,6]
[327686545,1716316255405,-714.57,0.00030958,6]
[327686546,1716316255416,-500.0,0.00030958,6]
[327686547,1716316255426,-640.59,0.00030958,6]
[327686548,1716316255435,-736.81,0.00030958,6]
[327686549,1716316255446,-500.76,0.00030958,6]
[327686550,1716316255455,-245.83216994,0.00030958,6]
[327686551,1716316255465,-582.67,0.00030958,6]
[327686552,1716316255475,-500.0,0.00030958,6]
[327686553,1716316255485,-500.0,0.00030958,6]
[327686554,1716316255495,-536.34,0.00030958,6]
[327686555,1716316255505,-758.17,0.00030958,6]
[327686556,1716316255516,-761.88,0.00030958,6]
[327686557,1716316255526,-508.86,0.00030958,6]
[327686558,1716316255536,-500.0,0.00030958,6]
[327686559,1716316255546,-500.0,0.00030958,6]
[327686560,1716316255555,-500.0,0.00030958,6]
[327686561,1716316255565,-548.52,0.00030958,6]
[327686562,1716316255575,-500.0,0.00030958,6]
[327686563,1716316255585,-1323.49,0.00030958,6]
[327686564,1716316255595,-858.99,0.00030958,6]